[Event "6th Heraklion Capablanca 2019"]
[Site "Heraklion"]
[Date "2019.05.05"]
[Round "7.5"]
[White "Szwed, Jacek"]
[Black "Anagnostopoulos, Konstantinos"]
[Result "1/2-1/2"]
[ECO "D36"]
[WhiteElo "2387"]
[BlackElo "2345"]
[Annotator "RC"]
[PlyCount "96"]
[EventDate "2019.04.29"]
[EventType "tourn"]
[EventCountry "GRE"]
[SourceTitle "playchess.com"]
[Source "ChessBase"]
[SourceQuality "1"]
[TimeControl "40/5400+30:1800+30"]

1. d4 {[%emt 0:00:00]} d5 {[%emt 0:06:43]} 2. c4 {[%emt 0:00:00]} e6 {[%emt 0:00:04]} 3. Nc3 {[%emt 0:00:08]} Nf6 {[%emt 0:00:05]} 4. cxd5 {[%emt 0:00:05]} exd5 {[%emt 0:00:06]} 5. Bg5 {[%emt 0:00:06]} Be7 {[%emt 0:00:14]} 6. e3 {[%emt 0:00:05]} c6 {[%emt 0:00:07]} 7. Bd3 {[%emt 0:00:08]} Nbd7 {[%emt 0:00:07]} 8. Qc2 {[%emt 0:00:17]} h6 {[%emt 0:00:06]} 9. Bh4 {[%emt 0:11:56]} Nh5 {[%emt 0:00:08]} 10. Bxe7 {[%emt 0:00:09]} Qxe7 {[%emt 0:00:04]} 11. Nge2 {[%emt 0:00:08]} Nb6 {[%emt 0:00:18]} 12. O-O {[%emt 0:00:39]} O-O {[%emt 0:00:05]} 13. Rae1 {[%emt 0:02:10]} Bd7 {[%emt 0:00:10]} 14. Nc1 {[%emt 0:02:40]} Rae8 {[%emt 0:01:52]} 15. Nb3 {[%emt 0:08:38]} Qg5 {[%emt 0:00:53]} 16. f4 {[%emt 0:34:25]} Qh4 {[%emt 0:02:29]} 17. f5 {[%emt 0:03:53]} Nf6 {[%emt 0:03:14]} 18. Qf2 {[%emt 0:02:05]} Qxf2+ {[%emt 0:02:03]} 19. Rxf2 {[%emt 0:00:01]} Nc8 {[%emt 0:03:01]} 20. h3 {[%emt 0:08:50]} Nd6 {[%emt 0:01:51]} 21. g4 {[%emt 0:00:21]} b6 {[%emt 0:00:20]} 22. Kg2 {[%emt 0:06:14]} c5 {[%emt 0:05:18]} 23. dxc5 {[%emt 0:02:30]} bxc5 {[%emt 0:00:04]} 24. Nxc5 {[%emt 0:01:58]} Bc6 {[%emt 0:00:04]} 25. Kf1 {[%emt 0:01:44]} h5 {[%emt 0:13:43]} 26. Rf4 {[%emt 0:05:51]} Re5 {[%emt 0:06:52]} 27. Nb3 {[%emt 0:01:00]} hxg4 {[%emt 0:01:49]} 28. hxg4 {[%emt 0:00:01]} g5 {[%emt 0:00:22]} 29. fxg6 {[%emt 0:05:11]} fxg6 {[%emt 0:00:04]} 30. Bxg6 {[%emt 0:01:25]} Nxg4 {[%emt 0:00:57]} 31. Rxf8+ {[%emt 0:00:04]} Kxf8 {[%emt 0:00:05]} 32. Nd1 {[%emt 0:02:39]} Bb5+ {[%emt 0:11:43]} 33. Kg2 Rg5 {[%emt 0:00:12]} 34. Bb1 {[%emt 0:00:22]} Ne5+ {[%emt 0:00:44]} 35. Kf2 {[%emt 0:01:11]} Ne4+ {[%emt 0:12:30]} 36. Bxe4 {[%emt 0:00:03]} dxe4 {[%emt 0:00:04]} 37. Nc1 {[%emt 0:00:13]} Rf5+ {[%emt 0:09:10]} 38. Kg2 {[%emt 0:00:58]} Rg5+ {[%emt 0:03:10]} 39. Kf2 {[%emt 0:00:02]} Rf5+ {[%emt 0:00:31]} 40. Kg3 {[%emt 0:00:00]} Bf1 {[%emt 0:00:00]} 41. Nf2 {[%emt 0:18:24]} Rf3+ {[%emt 0:04:52]} 42. Kh2 {[%emt 0:00:01]} Rxf2+ {[%emt 0:02:48]} 43. Kg1 {[%emt 0:00:01]} Rc2 {[%emt 0:10:56]} 44. Kxf1 {[%emt 0:00:55]} Nf3 {[%emt 0:02:51]} 45. Rd1 {[%emt 0:00:39]} Rh2 {[%emt 0:06:47]} 46. b4 {[%emt 0:06:15]} Rh1+ {[%emt 0:01:02]} 47. Ke2 {[%emt 0:00:02]} Rh2+ {[%emt 0:00:08]} 48. Kf1 {[%emt 0:00:01]} Rh1+ {[%emt 0:00:07]} 1/2-1/2

[Event "6th Heraklion Capablanca 2019"]
[Site "Heraklion"]
[Date "2019.05.07"]
[Round "9.1"]
[White "Antic, Dejan"]
[Black "Karousos-Theodorakis, Nikolaos"]
[Result "0-1"]
[ECO "E11"]
[WhiteElo "2471"]
[BlackElo "2280"]
[Annotator "ChessBase"]
[PlyCount "86"]
[EventDate "2019.04.29"]
[EventType "tourn"]
[EventCountry "GRE"]
[SourceTitle "playchess.com"]
[Source "ChessBase"]
[SourceQuality "1"]
[TimeControl "40/5400+30:1800+30"]

1. d4 {[%emt 0:00:00]} Nf6 {[%emt 0:00:00]} 2. c4 {[%emt 0:00:00]} e6 {[%emt 0:00:00]} 3. Nf3 {[%emt 0:00:00]} Bb4+ {[%emt 0:00:00]} 4. Bd2 {[%emt 0:00:26]} a5 {[%emt 0:00:00]} 5. Nc3 {[%emt 0:01:44]} d6 {[%emt 0:00:35]} 6. Qc2 {[%emt 0:01:03]} Nbd7 {[%emt 0:04:35]} 7. a3 {[%emt 0:05:58]} Bxc3 {[%emt 0:00:13]} 8. Bxc3 {[%emt 0:00:08]} Qe7 {[%emt 0:01:28]} 9. e4 {[%emt 0:05:57]} e5 {[%emt 0:01:40]} 10. Bd3 {[%emt 0:00:55]} O-O {[%emt 0:11:25]} 11. O-O {[%emt 0:01:40]} a4 {[%emt 0:03:39]} 12. Rfe1 {[%emt 0:02:02]} Re8 {[%emt 0:07:36]} 13. Nh4 {[%emt 0:04:08]} Nh5 {[%emt 0:04:14]} 14. Nf5 {[%emt 0:01:34]} Qf6 {[%emt 0:02:48]} 15. g3 {[%emt 0:02:39]} Nf8 {[%emt 0:10:08]} 16. Ne3 {[%emt 0:02:25]} Bh3 {[%emt 0:05:28]} 17. dxe5 {[%emt 0:03:32]} dxe5 {[%emt 0:00:37]} 18. f4 {[%emt 0:01:21]} Qg6 {[%emt 0:11:26]} 19. Bxe5 {[%emt 0:05:28]} Nxg3 {[%emt 0:02:57]} 20. hxg3 {[%emt 0:03:43]} Qxg3+ {[%emt 0:01:02]} 21. Ng2 {[%emt 0:02:29]} f6 {[%emt 0:09:55]} 22. Re3 {[%emt 0:02:29]} Qg4 {[%emt 0:03:20]} 23. Bxc7 {[%emt 0:06:12]} Ne6 {[%emt 0:01:55]} 24. Bd6 {[%emt 0:01:36]} Nd4 {[%emt 0:00:47]} 25. Qf2 {[%emt 0:00:55]} Nf5 {[%emt 0:01:07]} 26. Bc5 {[%emt 0:04:39]} Nxe3 {[%emt 0:00:08]} 27. Bxe3 {[%emt 0:00:07]} Rad8 {[%emt 0:00:30]} 28. Bc2 {[%emt 0:02:08]} f5 {[%emt 0:01:46]} 29. Kh2 {[%emt 0:03:38]} Rd6 {[%emt 0:06:58]} 30. Nh4 {[%emt 0:06:16]} Rh6 {[%emt 0:03:50]} 31. Nxf5 {[%emt 0:01:42]} Ree6 {[%emt 0:01:14]} 32. Ng3 {[%emt 0:04:22]} Reg6 {[%emt 0:02:53]} 33. f5 {[%emt 0:01:16]} Bf1+ {[%emt 0:00:57]} 34. Kg1 {[%emt 0:01:05]} Qxg3+ {[%emt 0:01:05]} 35. Kxf1 {[%emt 0:03:55]} Qh3+ {[%emt 0:00:35]} 36. Ke1 {[%emt 0:03:46]} Rg2 {[%emt 0:00:10]} 37. Bxh6 {[%emt 0:01:51]} Rxf2 {[%emt 0:00:08]} 38. Kxf2 {[%emt 0:00:04]} Qxh6 {[%emt 0:00:48]} 39. Ke2 {[%emt 0:00:58]} Qh2+ {[%emt 0:00:38]} 40. Kd3 {[%emt 0:00:00]} Qg3+ {[%emt 0:00:00]} 41. Ke2 {[%emt 0:01:31]} Qe5 {[%emt 0:03:09]} 42. Rb1 {[%emt 0:02:47]} h5 {[%emt 0:00:22]} 43. Kd3 {[%emt 0:00:58]} h4 {[%emt 0:01:32] Kd4 [%emt 00:00:42]} 0-1

[Event "6th Heraklion Capablanca 2019"]
[Site "Heraklion"]
[Date "2019.05.07"]
[Round "9.2"]
[White "Kelires, Andreas"]
[Black "Harff, Marcel"]
[Result "1-0"]
[ECO "E04"]
[WhiteElo "2508"]
[BlackElo "2412"]
[Annotator "ChessBase"]
[PlyCount "131"]
[EventDate "2019.04.29"]
[EventType "tourn"]
[EventCountry "GRE"]
[SourceTitle "playchess.com"]
[Source "ChessBase"]
[SourceQuality "1"]
[TimeControl "40/5400+30:1800+30"]

1. d4 {[%emt 0:00:00]} Nf6 {[%emt 0:00:00]} 2. c4 {[%emt 0:00:00]} e6 {[%emt 0:00:00]} 3. g3 {[%emt 0:00:00]} d5 {[%emt 0:00:00]} 4. Bg2 {[%emt 0:00:00]} dxc4 {[%emt 0:01:17]} 5. Nf3 {[%emt 0:00:00]} Nbd7 {[%emt 0:01:53]} 6. O-O {[%emt 0:00:30]} Rb8 {[%emt 0:00:14]} 7. a4 {[%emt 0:00:07]} a6 {[%emt 0:00:05]} 8. a5 {[%emt 0:01:29]} b5 {[%emt 0:08:50]} 9. axb6 {[%emt 0:00:18]} Rxb6 {[%emt 0:00:07]} 10. Nbd2 {[%emt 0:07:45]} Rb4 {[%emt 0:03:49]} 11. Ra4 {[%emt 0:01:28]} Bb7 {[%emt 0:00:00]} 12. Rxb4 {[%emt 0:08:07]} Bxb4 {[%emt 0:00:00]} 13. Nxc4 {[%emt 0:00:02]} Be7 {[%emt 0:01:38]} 14. Na5 {[%emt 0:15:03]} Be4 {[%emt 0:01:08]} 15. Ne5 {[%emt 0:06:54]} Bxg2 {[%emt 0:00:53]} 16. Kxg2 {[%emt 0:00:06]} Qa8+ {[%emt 0:00:21]} 17. f3 {[%emt 0:07:25]} c5 {[%emt 0:11:03]} 18. Nxd7 {[%emt 0:15:25]} Nxd7 {[%emt 0:00:15]} 19. dxc5 {[%emt 0:00:48]} Nxc5 {[%emt 0:00:37]} 20. b4 {[%emt 0:00:06]} Nd7 {[%emt 0:00:31]} 21. Qa4 {[%emt 0:00:59]} Qb8 {[%emt 0:03:14]} 22. Rd1 {[%emt 0:11:16]} Qb5 {[%emt 0:00:53]} 23. Qxb5 {[%emt 0:00:21]} axb5 {[%emt 0:00:02]} 24. Nc6 {[%emt 0:00:05]} Nb6 {[%emt 0:02:55]} 25. Be3 {[%emt 0:08:09]} Nc4 {[%emt 0:00:25]} 26. Bc5 {[%emt 0:00:54]} Bf6 {[%emt 0:01:23]} 27. e4 {[%emt 0:02:29]} g5 {[%emt 0:00:33]} 28. Kf2 {[%emt 0:03:39]} h5 {[%emt 0:01:24]} 29. Na7 {[%emt 0:03:06]} h4 {[%emt 0:01:14]} 30. Nxb5 {[%emt 0:01:38]} hxg3+ {[%emt 0:00:06]} 31. hxg3 {[%emt 0:00:03]} Be5 {[%emt 0:00:07]} 32. Kg2 {[%emt 0:00:16]} f6 {[%emt 0:00:15]} 33. Rc1 {[%emt 0:00:45]} Nb2 {[%emt 0:00:28]} 34. Bd6 {[%emt 0:01:48]} Kf7 {[%emt 0:00:12]} 35. Rc7+ {[%emt 0:01:18]} Kg6 {[%emt 0:00:08]} 36. Bxe5 {[%emt 0:00:25]} fxe5 {[%emt 0:00:03]} 37. Nd6 {[%emt 0:00:58]} Nd3 {[%emt 0:00:24]} 38. b5 {[%emt 0:00:23]} Rb8 {[%emt 0:03:30]} 39. Rc3 {[%emt 0:00:32]} Nb4 {[%emt 0:01:00]} 40. Rc4 {[%emt 0:00:00]} Nd3 {[%emt 0:00:00]} 41. Rc8 {[%emt 0:05:47]} Rb6 {[%emt 0:01:47]} 42. Rc6 {[%emt 0:00:04]} Rb8 {[%emt 0:00:06]} 43. Kf1 {[%emt 0:00:20]} Kf6 {[%emt 0:00:07]} 44. Ke2 {[%emt 0:10:08]} Nb4 {[%emt 0:00:25]} 45. Rc4 {[%emt 0:00:16]} Na2 {[%emt 0:00:28]} 46. Rc2 {[%emt 0:02:40]} Nb4 {[%emt 0:01:08]} 47. Rb2 {[%emt 0:01:24]} Nc6 {[%emt 0:00:37]} 48. Ke3 {[%emt 0:00:23]} Na5 {[%emt 0:02:01]} 49. Ra2 {[%emt 0:06:00]} Nb3 {[%emt 0:00:22]} 50. Rb2 {[%emt 0:00:05]} Na5 {[%emt 0:00:09]} 51. Ra2 {[%emt 0:00:15]} Nb3 {[%emt 0:00:06]} 52. Ra7 {[%emt 0:04:47]} Nd4 {[%emt 0:00:51]} 53. Rf7+ {[%emt 0:02:39]} Kg6 {[%emt 0:00:06]} 54. Re7 {[%emt 0:03:09]} Kf6 {[%emt 0:00:42]} 55. Rf7+ {[%emt 0:00:36]} Kg6 {[%emt 0:00:02]} 56. f4 {[%emt 0:00:28]} gxf4+ {[%emt 0:00:07]} 57. gxf4 {[%emt 0:00:01]} Nxb5 {[%emt 0:00:31]} 58. f5+ {[%emt 0:00:06]} exf5 {[%emt 0:00:07]} 59. exf5+ {[%emt 0:00:01]} Kh6 {[%emt 0:00:26]} 60. Rf6+ {[%emt 0:02:12]} Kh7 {[%emt 0:02:13]} 61. Ne4 {[%emt 0:00:12]} Nd4 {[%emt 0:07:23]} 62. Ng5+ {[%emt 0:00:03]} Kg8 {[%emt 0:00:33]} 63. Rg6+ {[%emt 0:00:11]} Kf8 {[%emt 0:00:11]} 64. f6 {[%emt 0:00:36]} Rb6 {[%emt 0:00:32]} 65. Nh7+ {[%emt 0:01:56]} Ke8 {[%emt 0:01:41]} 66. f7+ {[%emt 0:00:13]} 1-0

[Event "6th Heraklion Capablanca 2019"]
[Site "Heraklion"]
[Date "2019.05.07"]
[Round "9.3"]
[White "Vaishali R"]
[Black "Zarubitski, Viachaslau"]
[Result "1/2-1/2"]
[ECO "B49"]
[WhiteElo "2353"]
[BlackElo "2416"]
[Annotator "NA"]
[PlyCount "44"]
[EventDate "2019.04.29"]
[EventType "tourn"]
[EventCountry "GRE"]
[SourceTitle "playchess.com"]
[Source "ChessBase"]
[SourceQuality "1"]
[TimeControl "40/5400+30:1800+30"]

1. e4 {[%emt 0:00:00]} c5 {[%emt 0:00:00]} 2. Nf3 {[%emt 0:00:01]} e6 {[%emt 0:00:00]} 3. d4 {[%emt 0:00:04]} cxd4 {[%emt 0:00:00]} 4. Nxd4 {[%emt 0:00:05]} Nc6 {[%emt 0:00:00]} 5. Nc3 {[%emt 0:00:06]} Qc7 {[%emt 0:00:02]} 6. Be2 {[%emt 0:00:07]} a6 {[%emt 0:00:04]} 7. O-O {[%emt 0:00:05]} Nf6 {[%emt 0:00:04]} 8. Be3 {[%emt 0:00:05]} Bb4 {[%emt 0:00:02]} 9. Nxc6 {[%emt 0:00:27]} bxc6 {[%emt 0:00:09]} 10. Qd4 {[%emt 0:00:06]} c5 {[%emt 0:02:25]} 11. Qc4 {[%emt 0:00:17]} O-O {[%emt 0:00:41]} 12. Na4 {[%emt 0:00:38]} d5 {[%emt 0:01:51]} 13. exd5 {[%emt 0:00:16]} exd5 {[%emt 0:00:14]} 14. Qf4 {[%emt 0:01:10]} Qxf4 {[%emt 0:12:26]} 15. Bxf4 {[%emt 0:00:03]} c4 {[%emt 0:00:09]} 16. Nb6 {[%emt 0:09:23]} Ra7 {[%emt 0:01:16]} 17. Bf3 $14 {[%emt 0:11:09]} Be6 {[%emt 0:17:12]} 18. Rfd1 {[%emt 0:12:33]} c3 {[%emt 0:05:11]} 19. Be5 {[%emt 0:04:35]} cxb2 {[%emt 0:05:54]} 20. Bxb2 {[%emt 0:00:12]} Rc7 {[%emt 0:02:01]} 21. Bxf6 {[%emt 0:06:55]} gxf6 {[%emt 0:00:04]} 22. Nxd5 {[%emt 0:00:08]} Bxd5 {[%emt 0:00:06]} 1/2-1/2

[Event "6th Heraklion Capablanca 2019"]
[Site "Heraklion"]
[Date "2019.05.07"]
[Round "9.4"]
[White "Szwed, Jacek"]
[Black "Yoo, Christopher Woojin"]
[Result "0-1"]
[ECO "A16"]
[WhiteElo "2387"]
[BlackElo "2414"]
[Annotator "NA"]
[PlyCount "150"]
[EventDate "2019.04.29"]
[EventType "tourn"]
[EventCountry "GRE"]
[SourceTitle "playchess.com"]
[Source "ChessBase"]
[SourceQuality "1"]
[TimeControl "40/5400+30:1800+30"]

1. c4 {[%emt 0:00:00]} Nf6 {[%emt 0:00:00]} 2. Nc3 {[%emt 0:01:03]} g6 {[%emt 0:00:03]} 3. g3 {[%emt 0:00:00]} Bg7 {[%emt 0:00:29]} 4. Bg2 {[%emt 0:00:00]} O-O {[%emt 0:00:12]} 5. d3 {[%emt 0:00:16]} e5 {[%emt 0:02:55]} 6. e3 {[%emt 0:01:36]} c6 {[%emt 0:08:37]} 7. e4 {[%emt 0:00:25]} Na6 {[%emt 0:02:44]} 8. Nge2 {[%emt 0:00:39]} Nc7 {[%emt 0:02:22]} 9. O-O {[%emt 0:05:50]} d5 {[%emt 0:03:17]} 10. exd5 {[%emt 0:08:19]} cxd5 {[%emt 0:00:07]} 11. Bg5 $11 {[%emt 0:00:10]} dxc4 {[%emt 0:09:49]} 12. dxc4 {[%emt 0:00:24]} Ne6 {[%emt 0:02:20]} 13. Bd2 {[%emt 0:39:12]} Nd4 {[%emt 0:12:59]} 14. Nxd4 {[%emt 0:01:45]} exd4 {[%emt 0:01:46]} 15. Nd5 {[%emt 0:00:19]} Nxd5 {[%emt 0:06:58]} 16. Bxd5 {[%emt 0:03:30]} Bf5 {[%emt 0:09:38]} 17. Qf3 {[%emt 0:03:43]} Rc8 {[%emt 0:06:01]} 18. Rac1 {[%emt 0:08:45]} b6 {[%emt 0:02:46]} 19. Bf4 {[%emt 0:04:49]} Qd7 {[%emt 0:03:25]} 20. Rfe1 {[%emt 0:04:25]} d3 {[%emt 0:02:15]} 21. b3 {[%emt 0:02:48]} Bb2 {[%emt 0:02:20]} 22. Rcd1 {[%emt 0:03:46]} Bg4 {[%emt 0:00:51]} 23. Qxd3 {[%emt 0:00:05]} Bxd1 {[%emt 0:00:05]} 24. Rxd1 {[%emt 0:00:39]} Rfe8 {[%emt 0:05:05]} 25. Kg2 {[%emt 0:02:39]} Qe7 {[%emt 0:04:46]} 26. h4 {[%emt 0:01:26]} Qe2 {[%emt 0:03:54]} 27. Qxe2 {[%emt 0:03:05]} Rxe2 {[%emt 0:00:06]} 28. Bb7 {[%emt 0:00:53]} Rce8 {[%emt 0:02:47]} 29. Bc6 {[%emt 0:00:01]} Rc8 {[%emt 0:01:28]} 30. Bb7 {[%emt 0:00:02]} Rce8 {[%emt 0:01:17]} 31. Bc6 {[%emt 0:00:10]} Rc8 {[%emt 0:02:07]} 32. Bd7 {[%emt 0:00:02]} Rf8 {[%emt 0:01:41]} 33. Bg4 {[%emt 0:03:14]} Rc2 {[%emt 0:00:33]} 34. Rd7 {[%emt 0:00:01]} Bc3 {[%emt 0:00:44]} 35. Bh6 {[%emt 0:02:10]} Re8 {[%emt 0:00:22]} 36. Bf3 {[%emt 0:01:13]} Be1 {[%emt 0:00:22]} 37. Bd5 {[%emt 0:00:01]} Rxf2+ {[%emt 0:00:12]} 38. Kh3 {[%emt 0:00:17]} Bb4 {[%emt 0:00:59]} 39. Rxa7 {[%emt 0:00:21]} Bf8 {[%emt 0:00:29]} 40. Bf4 {[%emt 0:00:00]} Re7 {[%emt 0:00:00]} 41. Ra8 {[%emt 0:12:33]} h5 {[%emt 0:04:51]} 42. Bd6 {[%emt 0:09:30]} Ree2 {[%emt 0:00:35]} 43. Rxf8+ {[%emt 0:02:05]} Kg7 {[%emt 0:00:11]} 44. Rxf7+ {[%emt 0:00:18]} Rxf7 {[%emt 0:00:30]} 45. Bxf7 Kxf7 {[%emt 0:01:37]} 46. Bc7 {[%emt 0:03:47]} Rxa2 {[%emt 0:00:00]} 47. Bxb6 {[%emt 0:00:04]} Rb2 {[%emt 0:00:00]} 48. Bc7 {[%emt 0:04:25]} Rxb3 {[%emt 0:00:55]} 49. c5 {[%emt 0:02:07]} Rc3 {[%emt 0:02:02]} 50. Bd6 {[%emt 0:01:17]} Rc2 {[%emt 0:04:00]} 51. g4 {[%emt 0:00:29]} Rc3+ {[%emt 0:01:18]} 52. Bg3 {[%emt 0:00:06]} Rxc5 {[%emt 0:03:18]} 53. gxh5 {[%emt 0:00:02]} gxh5 {[%emt 0:04:40]} 54. Bf4 {[%emt 0:00:05]} Ke6 {[%emt 0:00:27]} 55. Kg3 {[%emt 0:00:10]} Kf5 {[%emt 0:00:18]} 56. Bg5 {[%emt 0:00:31]} Rc3+ {[%emt 0:01:01]} 57. Kg2 {[%emt 0:00:36]} Kg4 {[%emt 0:01:54]} 58. Kf2 {[%emt 0:00:03]} Rc6 {[%emt 0:00:33]} 59. Be7 {[%emt 0:01:08]} Re6 {[%emt 0:01:33]} 60. Bd8 {[%emt 0:00:27]} Re4 {[%emt 0:00:34]} 61. Bg5 {[%emt 0:00:38]} Re8 {[%emt 0:00:15]} 62. Kg2 {[%emt 0:00:25]} Re2+ {[%emt 0:00:34]} 63. Kf1 {[%emt 0:00:01]} Kf3 {[%emt 0:00:28]} 64. Kg1 {[%emt 0:01:57]} Kg3 {[%emt 0:00:19]} 65. Kf1 {[%emt 0:00:13]} Re8 {[%emt 0:00:11]} 66. Bh6 {[%emt 0:01:26]} Kxh4 {[%emt 0:00:11]} 67. Kg2 {[%emt 0:00:09]} Kg4 {[%emt 0:00:04]} 68. Bg7 {[%emt 0:00:27]} h4 {[%emt 0:00:14]} 69. Bd4 {[%emt 0:00:20]} h3+ {[%emt 0:00:20]} 70. Kh1 {[%emt 0:00:22]} Re2 {[%emt 0:00:40]} 71. Bg1 {[%emt 0:00:26]} Kg3 {[%emt 0:02:55]} 72. Bc5 {[%emt 0:00:37]} h2 {[%emt 0:00:29]} 73. Bd6+ {[%emt 0:00:19]} Kh3 {[%emt 0:00:09]} 74. Bg3 {[%emt 0:01:12]} Rd2 {[%emt 0:00:16]} 75. Be1 {[%emt 0:00:08]} Rb2 {[%emt 0:00:03]} 0-1

[Event "6th Heraklion Capablanca 2019"]
[Site "Heraklion"]
[Date "2019.05.07"]
[Round "9.5"]
[White "Anagnostopoulos, Konstantinos"]
[Black "Demuth, Adrien"]
[Result "1/2-1/2"]
[ECO "A88"]
[WhiteElo "2345"]
[BlackElo "2512"]
[Annotator "ChessBase"]
[PlyCount "101"]
[EventDate "2019.04.29"]
[EventType "tourn"]
[EventCountry "GRE"]
[SourceTitle "playchess.com"]
[Source "ChessBase"]
[SourceQuality "1"]
[TimeControl "40/5400+30:1800+30"]

1. c4 {[%emt 0:11:25]} f5 {[%emt 0:00:00]} 2. Nf3 {[%emt 0:00:19]} Nf6 {[%emt 0:00:00]} 3. d4 {[%emt 0:00:28]} g6 {[%emt 0:00:00]} 4. g3 {[%emt 0:00:03]} Bg7 {[%emt 0:00:04]} 5. Bg2 {[%emt 0:00:03]} O-O {[%emt 0:00:34]} 6. O-O {[%emt 0:00:08]} d6 {[%emt 0:00:05]} 7. Nc3 {[%emt 0:00:12]} c6 {[%emt 0:00:17]} 8. b3 {[%emt 0:00:15]} Na6 {[%emt 0:01:00]} 9. Bb2 {[%emt 0:00:18]} Qc7 {[%emt 0:00:06]} 10. d5 {[%emt 0:01:39]} e5 {[%emt 0:00:05]} 11. dxe6 {[%emt 0:00:12]} Bxe6 {[%emt 0:00:04]} 12. Qc2 {[%emt 0:00:51]} Nc5 {[%emt 0:04:05]} 13. Rad1 {[%emt 0:00:40]} Rad8 {[%emt 0:06:33]} 14. e3 {[%emt 0:00:11]} a5 {[%emt 0:01:00]} 15. Ne2 {[%emt 0:02:13]} Nce4 {[%emt 0:09:02]} 16. Nd2 {[%emt 0:06:47]} Nc5 {[%emt 0:06:40]} 17. h4 {[%emt 0:03:27]} Rfe8 {[%emt 0:01:11]} 18. a3 {[%emt 0:06:28]} Bf7 {[%emt 0:01:53]} 19. b4 {[%emt 0:00:08]} axb4 {[%emt 0:07:37]} 20. axb4 {[%emt 0:00:05]} Ncd7 {[%emt 0:01:50]} 21. Nf3 {[%emt 0:06:58]} Nb6 {[%emt 0:12:16]} 22. c5 {[%emt 0:02:00]} Nc4 {[%emt 0:06:52]} 23. cxd6 {[%emt 0:06:51]} Rxd6 {[%emt 0:01:19]} 24. Bd4 {[%emt 0:02:46]} b5 {[%emt 0:04:29]} 25. Ra1 {[%emt 0:06:44]} Qb8 {[%emt 0:14:54]} 26. Ba7 {[%emt 0:02:01]} Qc8 {[%emt 0:01:14]} 27. Bc5 {[%emt 0:00:49]} Rd7 {[%emt 0:00:14]} 28. Rfd1 {[%emt 0:05:30]} Nd5 {[%emt 0:04:53]} 29. Ned4 {[%emt 0:01:45]} Nxb4 {[%emt 0:07:27]} 30. Bxb4 {[%emt 0:00:05]} c5 {[%emt 0:00:02]} 31. Ng5 {[%emt 0:05:54]} cxd4 {[%emt 0:06:38]} 32. Nxf7 {[%emt 0:00:39]} Kxf7 {[%emt 0:00:59]} 33. exd4 {[%emt 0:01:37]} Bxd4 {[%emt 0:00:46]} 34. Rxd4 {[%emt 0:08:52]} Rxd4 {[%emt 0:00:06]} 35. Ra7+ {[%emt 0:01:12]} Kg8 {[%emt 0:01:06]} 36. Bc3 {[%emt 0:09:56]} Rd7 {[%emt 0:01:06]} 37. Qa2 {[%emt 0:01:02]} Qd8 {[%emt 0:00:50]} 38. Bc6 {[%emt 0:02:37]} Rxa7 {[%emt 0:00:37]} 39. Qxa7 {[%emt 0:00:06]} Re7 {[%emt 0:00:23]} 40. Qc5 {[%emt 0:00:00]} Qd1+ {[%emt 0:00:00]} 41. Kh2 {[%emt 0:06:28]} Qd6 {[%emt 0:06:13]} 42. Qxb5 {[%emt 0:03:58]} Ne5 {[%emt 0:03:25]} 43. Bd5+ {[%emt 0:00:23]} Nf7 {[%emt 0:00:35]} 44. Qc4 {[%emt 0:05:50]} Qc7 {[%emt 0:12:15]} 45. Qd4 {[%emt 0:00:06]} Kf8 {[%emt 0:00:05]} 46. Bb4 {[%emt 0:05:40]} Qe5 {[%emt 0:05:17]} 47. Qc5 {[%emt 0:03:52]} Nd8 {[%emt 0:00:04]} 48. Qa7 {[%emt 0:06:33]} Ke8 {[%emt 0:02:28]} 49. Bxe7 {[%emt 0:02:36]} Qxe7 {[%emt 0:00:47]} 50. Qd4 {[%emt 0:00:30]} Nf7 {[%emt 0:01:00]} 51. Bxf7+ {[%emt 0:00:48]} 1/2-1/2